Cogmind - Beta 12 @@@ ROGUE MODE // 2023.08.10 @ 05:54:29 Player: AAAAAAAAAAAAAAAA Result: Destroyed by G-34 Mercenary with Small Laser Performance ------------- Evolutions (1) 500 Regions Visited (4) 800 Robots Destroyed (51) 255 Value Destroyed (1305) 1305 Prototype IDs (2) 40 Alien Tech Used (0) 0 Bonus (0) 0 TOTAL SCORE: 2900 Bonus ------- None Cogmind --------- Core Integrity 0/400 Matter 290/300 Energy 93/100 System Corruption 9% Temperature Cool (7) Movement Treading (145) Location -9/Storage Parts ------- > --- POWER (2) -------- (None) > --- PROPULSION (2) --- Advanced Treads > --- UTILITY (3) ------ Medium Storage Unit Visual Processing Unit > --- WEAPON (2) ------- (None) > --- INVENTORY (10) --- Cooling System Small Storage Unit Medium Matter Pod (100) EM Shotgun EM Shotgun Improved Medium Laser Datajack Peak State ------------ > --- POWER ------------ Improved Ion Engine > --- PROPULSION ------- Advanced Treads Advanced Treads > --- UTILITY ---------- Medium Storage Unit Visual Processing Unit Improved Terrain Scan Processor > --- WEAPON ----------- Mace Makeshift Hammer > --- INVENTORY -------- Aluminum Leg Aluminum Leg Improved Hover Unit Improved Hover Unit Cooling System Small Storage Unit Medium Matter Pod Seismic Detector EM Shotgun EM Shotgun [Rating: 21] Favorites ----------- Power Light Ion Engine Engine Light Ion Engine Propulsion Aluminum Leg Treads Advanced Treads Leg Aluminum Leg Hover Unit Improved Hover Unit Utility Medium Storage Unit Device Seismic Detector Storage Medium Storage Unit Processor Visual Processing Unit Protection Light Armor Plating Weapon Makeshift Hammer Energy Gun Medium Laser Ballistic Gun Light Assault Rifle Ballistic Cannon Light Cannon Impact Weapon Makeshift Hammer Special Melee Weapon Datajack Build | -11 -10 -10 -9 -9 ------- Run | Jun Mat Min Mat Sto Slots Evolved 2 | . . . 2 . Power 1 | . . . 1 . Propulsion . | . . . . . Utility 1 | . . . 1 . Weapon . | . . . . . Parts Attached 52 | 7 14 4 18 9 Power 9 | 1 4 . 3 1 Engine 9 | 1 4 . 3 1 Core . | . . . . . Reactor . | . . . . . Propulsion 19 | 2 4 . 8 5 Treads 10 | 2 . . 5 3 Leg 7 | . 4 . 3 . Wheel . | . . . . . Hover 2 | . . . . 2 Flight . | . . . . . Utility 10 | 2 1 . 6 1 Device 3 | 1 . . 2 . Storage 2 | 1 1 . . . Processor 3 | . . . 3 . Hackware . | . . . . . Protection 2 | . . . 1 1 Artifact . | . . . . . Weapon 14 | 2 5 4 1 2 Energy Gun 3 | 1 1 1 . . Energy Cannon . | . . . . . Ballistic Gun 2 | 1 . 1 . . Ballistic Cannon 5 | . 4 1 . . Launcher . | . . . . . Special Weapon . | . . . . . Impact Weapon 3 | . . 1 1 1 Slashing Weapon . | . . . . . Piercing Weapon . | . . . . . Special Melee Weapon 1 | . . . . 1 Unidentified Prototypes . | . . . . . Parts Lost 12 | . . . 4 8 Power 4 | . . . 3 1 Propulsion 3 | . . . . 3 Utility 2 | . . . 1 1 Weapon 3 | . . . . 3 Highest Loss Streak 6 | . . . 3 6 To Critical Strikes 1 | . . . . 1 Average Slot Usage (%) 93 | . 99 100 93 69 Engine 13 | . 13 14 16 2 Treads 7 | . 7 . 6 18 Leg 17 | . 20 28 15 . Device 8 | . 14 14 5 . Storage 12 | . 14 14 11 11 Processor 8 | . . . 15 15 Energy Gun 4 | . 13 . . . Ballistic Cannon 7 | . 12 15 2 . Impact Weapon 12 | . . 12 19 15 Naked Turns . | . . . . . Heaviest Build 29 | 12 22 22 29 23 Greatest Support 44 | 40 40 20 44 44 Greatest Overweight (x) 7 | . 5 1 7 4 Average Overweight (x) . | . . . . . Largest Inventory Capacity 10 | 8 10 10 10 10 Average Capacity 9 | 7 8 10 10 10 Most Carried 10 | 8 10 10 10 10 Average Carried 9 | 5 8 9 9 9 Final Capacity 10 | 8 10 10 10 10 Final Carried 10 | 8 9 10 10 7 Class Distribution -------------------- 100% | Mutant Dominant Class ---------------- Mutant | -10/Materials Mutant | -10/Mines Mutant | -9/Materials Mutant | -9/Storage Resources | -11 -10 -10 -9 -9 ----------- Run | Jun Mat Min Mat Sto Matter Collected 1001 | 255 212 130 324 80 Remotely . | . . . . . Salvage Created 1600 | 97 198 100 867 338 Parts 83 | 4 23 4 37 15 Haulers Intercepted 2 | . . . 2 . Recyclers Shooed 1 | 1 . . . . Parts Field Recycled . | . . . . . Retrieved Matter . | . . . . . Parts Self-Destructed . | . . . . . Prevented . | . . . . . Kills | -11 -10 -10 -9 -9 ------- Run | Jun Mat Min Mat Sto Combat Hostiles Destroyed 37 | . 10 2 18 7 Melee 19 | . . 1 12 6 Guns 2 | . 2 . . . Cannons 8 | . 8 . . . Classes Destroyed 10 | 3 3 1 2 1 Worker 2 | 1 . . 1 . Builder 2 | . . . 1 1 Tunneler 1 | 1 . . . . Hauler 2 | . . . 2 . Recycler 1 | 1 . . . . Watcher 6 | . 1 . 5 . Swarmer 10 | . 6 . 4 . Grunt 16 | . 4 . 9 3 Duelist 1 | . . . . 1 Sentry 10 | . . 2 5 3 Best Kill Streak 4 | 1 3 2 4 3 Combat Bots Only 4 | . 3 2 4 3 Max Kills in Single Turn 1 | 1 1 1 1 1 Gunslinging . | . . . . . Exploded . | . . . . . Melee 1 | . . 1 1 1 Uniques/NPCs Destroyed . | . . . . . Combat | -11 -10 -10 -9 -9 -------- Run | Jun Mat Min Mat Sto Damage Taken 2203 | . 224 125 954 900 Core 430 | . 21 . 194 215 Absorbed by Shields 115 | . . . 115 . Regen/Repaired (Parts) 123 | . . . 123 . Core Remaining (%) 95 | 100 . 91 . . Volleys Fired 45 | 12 33 . . . Largest 2 | 2 2 . . . Hottest 100 | 70 100 . . . Shots Fired 90 | 24 66 . . . Gun 44 | 24 20 . . . Cannon 46 | . 46 . . . Launcher . | . . . . . Special . | . . . . . Kinetic 58 | 12 46 . . . Thermal 32 | 12 20 . . . Explosive . | . . . . . Electromagnetic . | . . . . . Robot Hit Streak 9 | 9 6 . . . Robot Miss Streak 7 | 4 7 . . . Penetration Max . | . . . . . Secondary Targets . | . . . . . Shots Hit Robots 126 | 16 29 6 58 17 Core Hits 39 | 5 14 1 14 5 Critical Kills 3 | . . . 3 . Critical Parts Destroyed 11 | . . 1 9 1 Critical Strikes 21 | 2 2 1 14 2 Burn 3 | 2 1 . . . Blast 1 | . 1 . . . Smash 17 | . . 1 14 2 Melee Attacks 120 | . . 7 87 26 Impact 120 | . . 7 87 26 Slashing . | . . . . . Piercing . | . . . . . Sneak Attacks 7 | . . . 6 1 Combat Hostiles . | . . . . . Follow-up Attacks 9 | . . . 8 1 Damage Inflicted 3976 | 167 480 188 2577 564 Guns 255 | 167 88 . . . Cannons 392 | . 392 . . . Explosions . | . . . . . Melee 3329 | . . 188 2577 564 Ramming . | . . . . . Kinetic 448 | 56 392 . . . Thermal 199 | 111 88 . . . Explosive . | . . . . . Electromagnetic . | . . . . . Impact 3329 | . . 188 2577 564 Slashing . | . . . . . Piercing . | . . . . . Highest Corruption 9 | . . . 1 9 Average Corruption 2 | . . . 1 3 Corruption Purged . | . . . . . Corruption Blocked . | . . . . . Effects 12 | . . . 1 11 Message Errors 4 | . . . . 4 Matter Fused 5 | . . . . 5 Energy Discharges 1 | . . . 1 . Data Loss (minor) 2 | . . . . 2 Overload Shots . | . . . . . Overflow Damage 818 | . 7 46 627 138 Projectiles 7 | . 7 . . . Explosions . | . . . . . Melee 811 | . . 46 627 138 Knockbacks 20 | . 9 . 8 3 Impact 9 | . . . 7 2 Kinetic 9 | . 9 . . . Secondary 2 | . . . 1 1 Self-Inflicted Damage . | . . . . . Shots . | . . . . . Rammed . | . . . . . Targets Rammed . | . . . . . Kicked . | . . . . . Crushed . | . . . . . Highest Temperature 168 | 90 168 10 17 . Average Temperature 40 | 32 45 10 7 . Received Heat Transfer 881 | . 84 63 392 342 Siege Activations . | . . . . . Robots Corrupted . | . . . . . Combat Hostiles . | . . . . . Parts Fried 23 | . . 1 20 2 Impact Corruptions 39 | . . 3 30 6 Robots Melted 1 | 1 . . . . Combat Hostiles . | . . . . . Parts Melted 3 | 2 1 . . . Heat Transferred 814 | 481 333 . . . Parts Sabotaged . | . . . . . Parts Stolen . | . . . . . Parts Stripped . | . . . . . Power Chain Reactions . | . . . . . Missiles Intercepted . | . . . . . Alert | -11 -10 -10 -9 -9 ------- Run | Jun Mat Min Mat Sto Peak Influence 307 | 15 305 136 307 292 Initial 97 | . 9 81 . 97 Average 96 | 7 88 61 113 152 Maximum Alert Level 1 | . 1 . 1 1 Low Security (%) 78 | 100 78 100 67 77 Level 1 21 | . 21 . 32 22 Level 2 . | . . . . . Level 3 . | . . . . . Level 4 . | . . . . . Level 5 . | . . . . . High Security . | . . . . . Max Security . | . . . . . Squads Dispatched 7 | . 3 . 2 2 Investigation 1 | . 1 . . . Extermination . | . . . . . Reinforcement 6 | . 2 . 2 2 Assault . | . . . . . Garrison . | . . . . . Intercept . | . . . . . Searches Triggered . | . . . . . Construction Impeded . | . . . . . Haulers Reinforced . | . . . . . Active Scanning Responses . | . . . . . Cargo Convoy Interrupts . | . . . . . Stealth | -11 -10 -10 -9 -9 --------- Run | Jun Mat Min Mat Sto Distress Signals 7 | . 1 . 2 4 Communications Jammed . | . . . . . Distress Signals . | . . . . . Times Spotted 73 | . 20 2 35 16 Peak Tracking Total 10 | . 3 2 5 10 Tactical Retreats 9 | . 3 . 5 1 Traps | -11 -10 -10 -9 -9 ------- Run | Jun Mat Min Mat Sto Traps Triggered 8 | . 3 . 2 3 Indirectly . | . . . . . Trap Hack Attempts . | . . . . . Triggered . | . . . . . Disarmed . | . . . . . Reprogrammed . | . . . . . Reused . | . . . . . Traps Extracted . | . . . . . Installed . | . . . . . Triggered . | . . . . . Machines | -11 -10 -10 -9 -9 ---------- Run | Jun Mat Min Mat Sto Machines Disabled . | . . . . . Max in Single Turn . | . . . . . Machines Repaired . | . . . . . Machines Sabotaged . | . . . . . Overloaded Fab Kills . | . . . . . Hacking | -11 -10 -10 -9 -9 --------- Run | Jun Mat Min Mat Sto Machines Accessed 15 | . 4 . 8 3 Terminals 11 | . 3 . 5 3 Fabricators . | . . . . . Repair Stations 2 | . . . 2 . Recycling Units 2 | . 1 . 1 . Scanalyzers . | . . . . . Garrison Access . | . . . . . Total Hacks 32 | . 6 . 20 6 Successful 16 | . 4 . 9 3 Failed 16 | . 2 . 11 3 Catastrophic 6 | . 1 . 3 2 Database Lockouts . | . . . . . Manual 7 | . . . 6 1 Terminals 22 | . 4 . 12 6 Fabricators . | . . . . . Repair Stations 7 | . . . 7 . Recycling Units 3 | . 2 . 1 . Scanalyzers . | . . . . . Garrison Access . | . . . . . Terminal Hacks 8 | . 2 . 3 3 Prototype ID Bank 1 | . . . . 1 Branch Access Points 1 | . 1 . . . Emergency Access Points 1 | . 1 . . . Alert Level 2 | . . . 1 1 Unreport Threat 1 | . . . 1 . Maintenance Status 1 | . . . 1 . Zone Layout 1 | . . . . 1 Fabricator Hacks . | . . . . . Repair Station Hacks 5 | . . . 5 . Scan Component 3 | . . . 3 . Repair 2 | . . . 2 . Recycling Unit Hacks 3 | . 2 . 1 . Report Inventory 3 | . 2 . 1 . Scanalyzer . | . . . . . Garrison Access Hacks . | . . . . . Unauthorized Hacks . | . . . . . Terminals . | . . . . . Fabricators . | . . . . . Repair Stations . | . . . . . Recycling Units . | . . . . . Scanalyzers . | . . . . . Garrison Access . | . . . . . Data Cores Recovered . | . . . . . Used . | . . . . . Hacking Detections 13 | . 3 . 7 3 Full Trace Events . | . . . . . Feedback Events . | . . . . . Feedback Blocked . | . . . . . Robot Schematics Acquired . | . . . . . Robots Built . | . . . . . Authchips . | . . . . . Time . | . . . . . Total Robot Build Rating . | . . . . . Part Schematics Acquired . | . . . . . Parts Built . | . . . . . Authchips . | . . . . . Time . | . . . . . Total Part Build Rating . | . . . . . Parts Repaired 2 | . . . 2 . Time 52 | . . . 52 . Parts Recycled . | . . . . . Recycled Matter . | . . . . . Retrieved Matter . | . . . . . Retrieved Components . | . . . . . Parts Scanalyzed . | . . . . . Part Schematics Acquired . | . . . . . Parts Damaged . | . . . . . Bothacking | -11 -10 -10 -9 -9 ------------ Run | Jun Mat Min Mat Sto Used RIF Installer . | . . . . . Robots Hacked . | . . . . . Non-combat . | . . . . . Combat . | . . . . . Robot Hacks Applied . | . . . . . Relay Couplers Released . | . . . . . Fabnet Peak Effective % . | . . . . . Robots Rewired . | . . . . . Allies Hacked . | . . . . . Hacks Repelled . | . . . . . Allies | -11 -10 -10 -9 -9 -------- Run | Jun Mat Min Mat Sto Total Allies . | . . . . . Largest Group . | . . . . . Highest-Rated Group . | . . . . . Highest-Rated Ally . | . . . . . Total Orders . | . . . . . Ally Attacks . | . . . . . Total Damage . | . . . . . Kills . | . . . . . Allies Corrupted . | . . . . . Allies Melted . | . . . . . Intel | -11 -10 -10 -9 -9 ------- Run | Jun Mat Min Mat Sto Robot Analysis Total . | . . . . . Derelict Logs Recovered 1 | . . 1 . . Drone Launches . | . . . . . Drone Recoveries . | . . . . . Exploration | -11 -10 -10 -9 -9 ------------- Run | Jun Mat Min Mat Sto Turns Passed 5056 | 326 1461 639 2142 488 Spaces Moved 2372 | 163 732 314 935 228 Core 12 | 7 1 . 1 3 Treads 884 | 156 156 . 377 195 Legs 1446 | . 575 314 557 . Wheels . | . . . . . Hover 30 | . . . . 30 Flight . | . . . . . Fastest Speed 50 | 50 120 120 145 120 Average Speed 158 | 155 131 188 173 142 Slowest Speed 400 | 160 300 190 400 250 Overloaded Moves . | . . . . . Propulsion Burnouts . | . . . . . Robots Hopped . | . . . . . Cave-ins Triggered . | . . . . . Exploration Rate (%) 53 | 8 84 67 66 44 Regions Visited 4 Branch Regions 2 Pre-discovered Areas . | . . . . . Known Exits Taken 2 | . 1 . 1 . Unknown Exits Taken 2 | 1 . 1 . . Scrap Searched 1 | . . 1 . . Spaces Dug . | . . . . . Terrain Destroyed . | . . . . . Melee . | . . . . . Projectile . | . . . . . AOE . | . . . . . Terrain Rammed . | . . . . . Walls Destroyed . | . . . . . Machines Disabled . | . . . . . Actions | -11 -10 -10 -9 -9 --------- Run | Jun Mat Min Mat Sto Total 3459 | 211 1165 353 1380 350 Wait 814 | 22 362 25 318 87 Move 2368 | 162 731 313 934 228 Hop . | . . . . . Pick Up 31 | 8 12 . 10 1 Fast Attach 36 | 7 9 4 12 4 Attach 12 | . 3 . 4 5 Detach 9 | . 1 1 6 1 Swap 4 | . 2 . 2 . Drop 30 | . 12 3 15 . Fire 45 | 12 33 . . . Melee 110 | . . 7 79 24 Ram . | . . . . . Kick . | . . . . . Crush . | . . . . . Escape Stasis . | . . . . . Rewire . | . . . . . Trap . | . . . . . Miscellaneous . | . . . . . Route ------- -11/Junkyard -10/Materials (discovered 3 exits: *Mat x2 / *Min) -10/Mines -9/Materials (discovered 3 exits: *Mat / [*Min] / *Sto) -9/Storage History --------- Turn | Location | Event 7 | -11/Junkyard | Discovered new exit (range 15) 327 | -11/Junkyard | Entered Materials 328 | -10/Materials | Build established: Mutant 1005 | -10/Materials | Discovered new exit (range 8) 1214 | -10/Materials | Discovered new exit (range 16) 1226 | -10/Materials | Identified exit to Mines 1788 | -10/Materials | Entered Mines 1866 | -10/Mines | A weapon hastily lodged in a ceiling crevice suddenly fell to the ground 1898 | -10/Mines | Learned location of 2 exits from Materials 2116 | -10/Mines | Discovered new exit (range 7) 2273 | -10/Mines | Received a Rocket Launcher from a helpful Derelict 2427 | -10/Mines | Entered Materials 2427 | -9/Materials | Evolved 2 slots: Power x1, Utility x1 2428 | -9/Materials | Identified exit to Materials 2428 | -9/Materials | Identified exit to Storage 2922 | -9/Materials | Discovered new exit (range 9) 3441 | -9/Materials | Repaired Aluminum Leg 3477 | -9/Materials | Repaired Aluminum Leg 3936 | -9/Materials | Lost 3 parts (2p1u) 4569 | -9/Materials | Entered Storage 4702 | -9/Storage | Core integrity fell below 50% 5008 | -9/Storage | Core integrity fell below 20% 5044 | -9/Storage | Lost 6 parts (1p2n1u2w) 5057 | -9/Storage | Destroyed by G-34 Mercenary with Small Laser Last Messages --------------- 05007_ System corrupted by crushing effect (+1). 05009_ Sneak attack on U-05 Engineer. 05009_ Destroyed Terrain Scanner. 05009_ U-05 Engineer system corrupted by crushing effect. 05009_ Adv. Treads destroyed. 05010_ U-05 Engineer system terminally corrupted. 05010_ Wheel fried. 05013_ Acquired 15 matter. 05013_ Critical hit (Smash). 05013_ Mace destroyed. 05013_ System corrupted by crushing effect (+5). 05013_ Imp. Hover Unit destroyed. 05016_ Acquired 10 matter. 05019_ System corrupted: Matter fused (-6). 05021_ Acquired 6 matter. 05034_ System corrupted: Component data lost. 05046_ K-01 Serf collects debris. 05048_ K-01 Serf cleans the Transfer Shaft. 05049_ Imp. Hover Unit destroyed. 05054_ K-01 Serf collects debris. Map ----- +----------------------------------------------------+ | ???????????????????????????????????????? | | ???????????????????????????????????????? | | #################??????????????????????? | | #??????###?????????????? | | ^ ######## ##????????????? | | ^^ # #????????????? | | ############ # T #????????????? | | ???????????# # #????????????? | | ???????????# # #????????????? | | ???????????# # """" #????????????? | | ???????????# *# """" #????????????? | | ???????????# %+ """" #???#####????? | | ???????????# # """" #???""""#????? | | ???????????# ########+#####""T"# #??? | | ???????????# #??????# #?# ??? | | ???????????# ######## #?# """" #?? | | ???????????# ### """" #?? | | ???????????# # """" #?? | | ???????????# + """" #?? | | ???????????# """ # #?? | | ???????????# """ # #?? | | ???????????### """ o# #?? | | ?????????????# ###########?? | | ?????????????# ##### #?????! ??? | | ?????????????# ???## """ #????|! ????? | | ?????????????# ???#T """@ #???||!?????? | | ??????????????+???## """ #?? ???????? | | ?????????????? ????# ##+########?? | | ???????????????????# k # ! #?? | | ???????????????????# # #?? | | ????""?????????????# % # ! #?? | | ????""?????????????# t% g / [#?? | | ???? ?????????????# ##+#####g#] #?? | | ??##+#??###?#??????# # = ##g# /] #?? | | ??# ??? ??????? # """ ## ##/##/##?? | | ??# #???# #??????## # """ ## #??? | | #?#^ #####/####????# # """ # #??? | | #?# # #????# # ## #??? | | ### # """ ! ###??# # [ ## #??? | | + # ""R" ""#### ######## #??? | | ### # "" " Y" #%# / #??? | | #?# %/ "" # # #### #??? | | #?# # [= # % #%# #??# #??? | | #?# # [= / / #??# #??? | | ### # [= # % ### #??#+##+#??? | | / # ! # #?# #?? ?????? | | ### ########## #?########??! ?????? | | #?# ## #?# #??????????? ?????? | | ### ## #?# #??????????? ! ????? | | ## # ########???????????####????? | +----------------------------------------------------+ Best States ------------- Heat Dissipation 28 Energy Generation 17 Energy Capacity 415 Matter Stores 300 Matter Capacity 300 Sight Range 18 Terrain Scan Density 110 Armor Coverage 150 Evasion (%) 55 Recoil Reduction 2 Item Schematics ----------------- None Robot Schematics ------------------ None Fabricated ------------ Nothing Alien Tech Used ----------------- None Achievements -------------- None Challenges ------------ None Game ------ Seed TitaniumRefineryBay Manual? 0 Play Time 01:10:43 Cumulative 46.1 hours Start 2023.08.10 @ 04:38:05 End 2023.08.10 @ 05:54:29 Sessions 1 Manual Loads 0 Difficulty Rogue Special Mode None Game No. 31 Rogue 26 Adventurer 5 Explorer 0 Win Type - Total 1 Types 1/0/0/0/0/0/0/0/0 Lore% 11 Gallery% 33 Achievement% 28 Wizard Run 0 Options --------- ASCII 0 Keyboard 1 Movement Numpad Keybinds 0 Fullscreen 2 Font 18/Terminus Map View 76x50 Tactical HUD 1 Map Filters NONE Filters NONE Steam 1 RUN: d8aa3f96-94b7-4597-b464-ca25398ff6d9